bitfinex/quotes_BTCUSD_20250803
["timestamp","ask_amount","ask_price","bid_price","bid_amount"]
[1754252497611,5.03844762,114440.0,114430.0,0.07305879]
[1754252497811,5.04454584,114440.0,114430.0,0.07305879]
[1754252500148,4.84950384,114440.0,114430.0,0.07305879]
[1754252503492,4.84951212,114440.0,114430.0,0.07305879]
[1754252509517,4.83583057,114440.0,114430.0,0.07305879]
[1754252510802,4.83582284,114440.0,114430.0,0.07305879]
[1754252512169,4.83582318,114440.0,114430.0,0.07305879]
[1754252512329,4.84950473,114440.0,114430.0,0.07305879]
[1754252514955,4.84949959,114440.0,114430.0,0.07305879]
[1754252521185,4.17437263,114440.0,114430.0,0.07815879]
[1754252521414,4.84752959,114440.0,114430.0,0.07815879]
[1754252521636,4.14611663,114440.0,114430.0,0.07815879]
[1754252522067,4.14607663,114440.0,114430.0,0.75328575]
[1754252522490,4.14607663,114440.0,114430.0,0.07815879]
[1754252523235,4.12985546,114440.0,114430.0,0.07815879]
[1754252524087,4.80498242,114440.0,114430.0,0.07815879]
[1754252525571,4.80498204,114440.0,114430.0,0.07815879]
[1754252527685,4.12985508,114440.0,114430.0,0.07815879]
[1754252527887,4.80498204,114440.0,114430.0,0.07815879]
[1754252529613,4.79130049,114440.0,114430.0,0.07815879]
[1754252531685,4.79130288,114440.0,114430.0,0.07815879]
[1754252531912,4.79334288,114440.0,114430.0,0.07815879]
[1754252532109,4.79334288,114440.0,114430.0,0.05707761]
[1754252532336,4.80959667,114440.0,114430.0,0.05707761]
[1754252532555,4.82327788,114440.0,114430.0,0.05707761]
[1754252533208,4.82327788,114440.0,114430.0,0.05409761]
[1754252535377,4.58382088,114440.0,114430.0,0.05409761]
[1754252535844,4.57013967,114440.0,114430.0,0.05409761]
[1754252538233,4.57013967,114440.0,114430.0,0.05197761]
[1754252539032,4.58382092,114440.0,114430.0,0.05197761]
[1754252539421,4.58383169,114440.0,114430.0,0.05197761]
[1754252549747,4.58383169,114440.0,114430.0,0.05724761]
[1754252551127,4.58383169,114440.0,114430.0,0.05197761]
[1754252552572,4.57015044,114440.0,114430.0,0.05197761]
[1754252555519,4.58383166,114440.0,114430.0,0.05197761]
[1754252558234,3.72978,114430.0,114420.0,0.00317]
[1754252558434,0.81595365,114430.0,114420.0,0.00317]
[1754252558728,4.54573365,114430.0,114410.0,0.00317]
[1754252558978,4.40490696,114420.0,114410.0,0.00317]
[1754252559210,3.72978,114410.0,114400.0,0.13605]
[1754252559427,4.40490696,114410.0,114400.0,0.13815]
[1754252559675,0.67512696,114410.0,114400.0,0.00547]
[1754252560118,0.67512696,114410.0,114400.0,0.07357]
[1754252560625,0.67512696,114410.0,114400.0,0.07857]
[1754252561904,0.68881006,114410.0,114400.0,0.07857]
[1754252562123,0.0136831,114410.0,114400.0,0.07857]
[1754252562560,0.0136831,114410.0,114400.0,0.08157]
[1754252563877,0.68881006,114410.0,114400.0,0.08157]
[1754252564786,0.0136831,114410.0,114400.0,0.08157]
[1754252564999,0.0136831,114410.0,114400.0,0.75669696]
[1754252565452,0.0136831,114410.0,114400.0,0.8453298]
[1754252565896,0.00047576,114430.0,114400.0,0.8453298]
[1754252566111,0.00656595,114430.0,114410.0,0.13486512]
[1754252566357,0.00047576,114430.0,114420.0,0.67723696]
[1754252566837,0.00047576,114430.0,114420.0,0.74719696]
[1754252567731,0.00047576,114430.0,114420.0,0.07207]
[1754252568601,0.67560272,114430.0,114420.0,0.07207]
[1754252568815,0.67560272,114430.0,114420.0,0.07307]
[1754252568816,0.00047576,114430.0,114420.0,0.07307]
[1754252569062,0.00047576,114430.0,114420.0,0.07507]
[1754252569288,0.01415728,114430.0,114420.0,0.07507]
[1754252574490,3.72978,114430.0,114420.0,0.07507]
[1754252574707,0.01368153,114430.0,114420.0,0.07507]
[1754252590660,0.51331437,114440.0,114420.0,0.07507]
[1754252590794,0.67505253,114430.0,114420.0,0.07511759]
[1754252591438,0.67505253,114430.0,114420.0,0.07411759]
[1754252593288,0.34,114440.0,114420.0,0.07411759]
[1754252593460,0.67505253,114430.0,114420.0,0.07411759]
[1754252593660,0.68873401,114430.0,114420.0,0.07411759]
[1754252593888,0.68873401,114430.0,114420.0,0.07511759]
[1754252605142,0.67505253,114430.0,114420.0,0.07511759]
[1754252607756,0.67703253,114430.0,114420.0,0.07511759]
[1754252609508,0.69071409,114430.0,114420.0,0.07511759]
[1754252610131,0.01566156,114430.0,114420.0,0.07511759]
[1754252610347,0.69071409,114430.0,114420.0,0.07511759]
[1754252610777,0.01566156,114430.0,114420.0,0.07511759]
[1754252610999,0.69071409,114430.0,114420.0,0.07511759]
[1754252612894,0.69680943,114430.0,114420.0,0.20247759]
[1754252615316,0.69978943,114430.0,114420.0,0.13568759]
[1754252616045,0.69680943,114430.0,114420.0,0.20079759]
[1754252619445,0.68312787,114430.0,114420.0,0.20079759]
[1754252622487,0.69680944,114430.0,114420.0,0.20079759]
[1754252623234,0.69681064,114430.0,114420.0,0.20079759]
[1754252625970,0.02175811,114430.0,114420.0,0.20600759]
[1754252626179,0.69681064,114430.0,114420.0,0.20600759]
[1754252628029,0.02175811,114430.0,114420.0,0.20600759]
[1754252628231,0.00807654,114430.0,114420.0,0.20600759]
[1754252628463,0.68312907,114430.0,114420.0,0.20600759]
[1754252631271,0.69681063,114430.0,114420.0,0.20600759]
[1754252642443,0.69681063,114430.0,114420.0,0.20079759]
[1754252642659,0.68312907,114430.0,114420.0,0.20079759]
[1754252644442,0.00807654,114430.0,114420.0,0.20079759]
[1754252644683,0.68312907,114430.0,114420.0,0.20276759]
[1754252644909,0.68312907,114430.0,114420.0,0.20600759]
[1754252645588,0.70494489,114430.0,114420.0,0.20600759]
[1754252647226,0.70494489,114430.0,114420.0,0.20276759]
[1754252648521,0.50031387,114430.0,114420.0,0.20600759]
[1754252648751,0.50193387,114430.0,114420.0,0.20600759]
[1754252652062,0.48825227,114430.0,114420.0,0.20600759]
[1754252654934,0.50193388,114430.0,114420.0,0.20600759]
[1754252660134,0.50193894,114430.0,114420.0,0.20600759]
[1754252661699,0.48825733,114430.0,114420.0,0.20600759]
[1754252664633,0.50193896,114430.0,114420.0,0.20600759]
[1754252670880,0.50031896,114430.0,114420.0,0.20600759]
[1754252671310,0.48663733,114430.0,114420.0,0.20600759]
[1754252673604,0.68319181,114430.0,114420.0,0.20600759]
[1754252674273,0.69687343,114430.0,114420.0,0.20600759]
[1754252679873,0.01368162,114430.0,114420.0,0.20600759]
[1754252680530,0.01978755,114430.0,114420.0,0.20600759]
[1754252680740,0.69484008,114430.0,114420.0,0.20600759]
[1754252683212,0.01978755,114430.0,114420.0,0.20600759]
[1754252683482,0.01978674,114430.0,114420.0,0.20600759]
[1754252683937,0.01978674,114430.0,114420.0,0.88106012]
[1754252684145,0.01368162,114430.0,114420.0,0.88106012]
[1754252684408,0.01368162,114430.0,114420.0,0.96969296]
[1754252684677,3.72978,114440.0,114420.0,0.96969296]
[1754252684879,3.72978,114440.0,114430.0,0.67505253]
[1754252685095,3.72978,114440.0,114430.0,0.74410253]
[1754252685866,3.72978,114440.0,114430.0,0.06905]
[1754252687574,0.01367998,114440.0,114430.0,0.06905]
[1754252688452,0.83327803,114450.0,114430.0,0.06905]
[1754252688669,3.72978,114440.0,114430.0,0.06605]
[1754252689097,3.72978,114440.0,114430.0,0.06705]
[1754252689327,3.72978,114440.0,114430.0,0.07005]
[1754252690172,3.72978,114440.0,114430.0,0.07205]
[1754252690884,0.67505253,114440.0,114430.0,0.07205]
[1754252691823,3.72978,114440.0,114430.0,0.07205]
[1754252692536,4.40483253,114440.0,114430.0,0.07205]
[1754252692761,0.68873258,114440.0,114430.0,0.07205]
[1754252693537,0.01368005,114440.0,114430.0,0.07205]
[1754252694870,0.01368005,114440.0,114430.0,0.07423474]
[1754252696935,0.68873258,114440.0,114430.0,0.07423474]
[1754252697141,0.68873258,114440.0,114430.0,0.07205]
[1754252701035,0.69035258,114440.0,114430.0,0.07205]
[1754252701240,0.69035258,114440.0,114430.0,0.06699]
[1754252701628,0.01530005,114440.0,114430.0,0.06699]
[1754252701837,0.69035258,114440.0,114430.0,0.06699]
[1754252702885,0.69035258,114440.0,114430.0,0.06999]
[1754252704521,0.67505253,114440.0,114430.0,0.07205]
[1754252704766,0.68873296,114440.0,114430.0,0.07205]
[1754252709337,0.67505253,114440.0,114430.0,0.07205]
[1754252712517,0.68873267,114440.0,114430.0,0.07205]
[1754252719724,0.67505253,114440.0,114430.0,0.07205]
[1754252726451,0.19073563,114450.0,114430.0,0.07205]
[1754252726638,0.67505253,114440.0,114430.0,0.07423474]
[1754252726812,0.67505253,114440.0,114430.0,0.07205]
[1754252727696,0.67505253,114440.0,114430.0,0.07105]
[1754252729035,0.67505253,114440.0,114430.0,0.07205]
[1754252741183,0.1770155,114450.0,114430.0,0.07205]
[1754252741395,0.67505253,114440.0,114430.0,0.07205]
[1754252742188,0.67505253,114440.0,114430.0,0.07105]
[1754252742802,0.67505253,114440.0,114430.0,0.06905]
[1754252743033,0.68873263,114440.0,114430.0,0.06905]
[1754252743666,0.48794065,114440.0,114430.0,0.06905]
[1754252743887,0.48794065,114440.0,114430.0,0.07105]
[1754252744723,0.48794065,114440.0,114430.0,0.07205]
[1754252748793,0.0136801,114440.0,114430.0,0.83573537]
[1754252748996,3.72978,114460.0,114430.0,0.83573537]
[1754252749208,0.01426027,114460.0,114450.0,0.67505253]
[1754252749413,0.01426027,114460.0,114450.0,0.00203]
[1754252749611,0.00611267,114460.0,114450.0,0.07044]
[1754252749827,3.74404015,114460.0,114450.0,0.07044]
[1754252750078,0.01426015,114460.0,114450.0,0.07044]
[1754252750274,0.01425747,114460.0,114450.0,0.07044]
[1754252750491,0.01425747,114460.0,114450.0,0.74749253]
[1754252751105,0.01625747,114460.0,114450.0,0.74749253]
[1754252751347,0.01625747,114460.0,114450.0,0.07244]
[1754252751761,3.72978,114460.0,114450.0,0.07244]
[1754252753063,0.8341207,114470.0,114450.0,0.07244]
[1754252753292,0.85040362,114470.0,114460.0,0.00302]
[1754252753499,0.1890292,114470.0,114460.0,0.06841]
[1754252753867,0.73156173,114470.0,114460.0,0.06841]
[1754252754084,0.04022628,114470.0,114460.0,0.07044]
[1754252754509,0.71527881,114470.0,114460.0,0.07048759]
[1754252755255,0.04022628,114470.0,114460.0,0.07048759]
[1754252755457,0.71627881,114470.0,114460.0,0.07048759]
[1754252756276,3.78596628,114470.0,114460.0,4.759e-05]
[1754252756488,4.1828167,114470.0,114460.0,4.759e-05]
[1754252756690,5.02966788,114470.0,114460.0,4.759e-05]
[1754252756901,4.35461535,114470.0,114460.0,4.759e-05]
[1754252757073,4.87115143,114470.0,114460.0,0.00104759]
[1754252757490,4.82617935,114470.0,114460.0,0.00104759]
[1754252757793,4.82617935,114470.0,114460.0,4.759e-05]
[1754252758881,4.82717935,114470.0,114460.0,4.759e-05]
[1754252759346,4.85345735,114470.0,114460.0,4.759e-05]
[1754252760406,4.86713655,114470.0,114460.0,4.759e-05]
[1754252760634,5.54218908,114470.0,114460.0,4.759e-05]
[1754252760850,4.86713655,114470.0,114460.0,4.759e-05]
[1754252763759,4.88137539,114470.0,114460.0,4.759e-05]
[1754252764452,5.01557539,114470.0,114460.0,4.759e-05]
[1754252765170,5.01557616,114470.0,114460.0,4.759e-05]
[1754252765858,5.00189696,114470.0,114460.0,4.759e-05]
[1754252766548,5.00190126,114470.0,114460.0,4.759e-05]
[1754252767430,5.03118898,114470.0,114460.0,4.759e-05]
[1754252768927,5.00190126,114470.0,114460.0,4.759e-05]
[1754252769144,4.97933918,114470.0,114460.0,4.759e-05]
[1754252771010,4.96337918,114470.0,114460.0,0.06251759]
[1754252771396,4.28832665,114470.0,114460.0,0.06251759]
[1754252771606,4.93710118,114470.0,114460.0,0.06251759]
[1754252772564,4.93710118,114470.0,114460.0,4.759e-05]
[1754252775316,4.93711044,114470.0,114460.0,4.759e-05]
[1754252775855,4.93711044,114470.0,114460.0,0.06251759]
[1754252776500,4.93711044,114470.0,114460.0,0.06351759]
[1754252779734,4.93711044,114470.0,114460.0,0.06657759]
[1754252780439,4.9371185,114470.0,114460.0,0.06657759]
[1754252782880,4.95079717,114470.0,114460.0,0.06657759]
[1754252783625,4.14154464,114470.0,114460.0,0.06657759]
[1754252783831,4.95051717,114470.0,114460.0,0.06868759]
[1754252784265,4.95052336,114470.0,114460.0,0.06868759]
[1754252785325,4.27547083,114470.0,114460.0,0.06868759]
[1754252785547,4.95052336,114470.0,114460.0,0.06868759]
[1754252786396,4.93684469,114470.0,114460.0,0.06868759]
[1754252787518,5.65874494,114470.0,114460.0,0.00104759]
[1754252787734,5.68430139,114470.0,114460.0,0.00104759]
[1754252788225,5.00924886,114470.0,114460.0,0.00104759]
[1754252788438,5.68430139,114470.0,114460.0,0.00104759]
[1754252789110,5.65874494,114470.0,114460.0,0.00104759]
[1754252789306,5.65486381,114470.0,114460.0,0.00104759]
[1754252789516,4.97981128,114470.0,114460.0,0.00104759]
[1754252789726,4.97981128,114470.0,114460.0,0.06657759]
[1754252791843,4.78843811,114470.0,114460.0,0.06657759]
[1754252792675,4.71323816,114470.0,114460.0,0.06657759]
[1754252792896,4.71324465,114470.0,114460.0,0.06657759]
[1754252794199,4.71312465,114470.0,114460.0,0.06657759]
[1754252794394,4.73575819,114470.0,114460.0,0.06657759]
[1754252794809,4.13590561,114470.0,114460.0,0.06868759]
[1754252795026,4.70647047,114470.0,114460.0,0.06868759]
[1754252795659,4.70036181,114470.0,114460.0,0.06868759]
[1754252795908,4.70647585,114470.0,114460.0,0.06868759]
[1754252796552,4.70663585,114470.0,114460.0,0.06868759]
[1754252796943,4.73592357,114470.0,114460.0,0.06657759]
[1754252798838,4.39592357,114470.0,114460.0,0.06657759]
[1754252801247,4.3822447,114470.0,114460.0,0.06657759]
[1754252803825,4.39592332,114470.0,114460.0,0.06657759]
[1754252805055,4.73592332,114470.0,114460.0,0.06657759]
[1754252807455,4.7222447,114470.0,114460.0,0.06657759]
[1754252807916,4.5882847,114470.0,114460.0,0.06657759]
[1754252808128,4.7221247,114470.0,114460.0,0.06861759]
[1754252808808,4.69283698,114470.0,114460.0,0.06861759]
[1754252810226,4.70651559,114470.0,114460.0,0.06861759]
[1754252811427,4.10666301,114470.0,114460.0,0.06861759]
[1754252811636,4.70651559,114470.0,114460.0,0.06861759]
[1754252812806,4.78149014,114470.0,114460.0,0.06861759]
[1754252813152,4.78148928,114470.0,114460.0,0.06861759]
[1754252816863,4.10666215,114470.0,114460.0,0.06861759]
[1754252817005,4.78148928,114470.0,114460.0,0.06861759]
[1754252820683,4.10666215,114470.0,114460.0,0.06861759]
[1754252820889,4.78128928,114470.0,114460.0,0.06861759]
[1754252821255,4.76764774,114470.0,114460.0,0.06861759]
[1754252822820,4.09282061,114470.0,114460.0,0.06861759]
[1754252823041,4.76764774,114470.0,114460.0,0.06861759]
[1754252823854,4.767656,114470.0,114460.0,0.06861759]
[1754252824079,4.78133439,114470.0,114460.0,0.06861759]
[1754252829688,4.78133502,114470.0,114460.0,0.06861759]
[1754252835660,4.78133373,114470.0,114460.0,0.06861759]
[1754252838449,4.78133318,114470.0,114460.0,0.06861759]
[1754252840653,4.78132704,114470.0,114460.0,0.06861759]
[1754252841595,4.78132707,114470.0,114460.0,0.06861759]
[1754252842013,4.52680007,114470.0,114460.0,0.06861759]
[1754252844246,4.51312168,114470.0,114460.0,0.06861759]
[1754252845149,4.37948168,114470.0,114460.0,0.06861759]
[1754252845323,4.51288168,114470.0,114460.0,0.06861759]
[1754252845764,3.83805455,114470.0,114460.0,0.06861759]
[1754252845977,3.49805455,114470.0,114460.0,0.06861759]
[1754252846178,3.83805455,114470.0,114460.0,0.06861759]
[1754252846601,4.51288168,114470.0,114460.0,0.06861759]
[1754252846988,4.52655972,114470.0,114460.0,0.06861759]
[1754252856058,4.5265581,114470.0,114460.0,0.06861759]
[1754252858075,4.16220561,114470.0,114460.0,0.06861759]
[1754252858969,4.16220699,114470.0,114460.0,0.06861759]
[1754252859397,4.14852895,114470.0,114460.0,0.06861759]
[1754252859811,4.18391278,114470.0,114460.0,0.06861759]
[1754252860447,4.31847278,114470.0,114460.0,0.06861759]
[1754252862288,4.19759083,114470.0,114460.0,0.06861759]
[1754252865430,4.18391278,114470.0,114460.0,0.06861759]
[1754252866947,4.17779496,114470.0,114460.0,0.06861759]
[1754252867172,4.1839147,114470.0,114460.0,0.06861759]
[1754252870157,4.19207489,114470.0,114460.0,0.06861759]
[1754252878356,3.51724776,114470.0,114460.0,0.06861759]
[1754252878569,4.19207489,114470.0,114460.0,0.06861759]
[1754252878984,3.51724776,114470.0,114460.0,0.06861759]
[1754252879195,4.19207489,114470.0,114460.0,0.06861759]
[1754252883198,3.51724776,114470.0,114460.0,0.06861759]
[1754252883426,4.19207489,114470.0,114460.0,0.06861759]
[1754252885461,4.20575284,114470.0,114460.0,0.06861759]
[1754252887183,4.20575967,114470.0,114460.0,0.06861759]
[1754252887550,4.20576827,114470.0,114460.0,0.06861759]
[1754252889254,3.53094114,114470.0,114460.0,0.06861759]
[1754252889484,4.20576827,114470.0,114460.0,0.06861759]
[1754252898476,4.20576827,114470.0,114460.0,0.00104759]
[1754252898705,4.24102554,114470.0,114460.0,0.00104759]
[1754252898922,4.24919306,114470.0,114460.0,0.00104759]
[1754252900680,4.37510554,114470.0,114460.0,0.00104759]
[1754252900884,4.35569583,114470.0,114460.0,0.00104759]
[1754252901346,4.37202786,114470.0,114460.0,0.00104759]
[1754252901559,4.03202786,114470.0,114460.0,0.00104759]
[1754252905676,4.01834991,114470.0,114460.0,0.00104759]
[1754252907760,4.00249991,114470.0,114460.0,0.00104759]
[1754252909995,4.01617829,114470.0,114460.0,0.00104759]
[1754252910888,4.01617829,114470.0,114460.0,0.06438759]
[1754252913592,3.83520429,114470.0,114460.0,0.06438759]
[1754252916150,3.82152591,114470.0,114460.0,0.06438759]
[1754252917808,3.82152591,114470.0,114460.0,0.06759759]
[1754252922034,3.82152121,114470.0,114460.0,0.06759759]
[1754252925044,3.82152231,114470.0,114460.0,0.06759759]
[1754252927809,4.1615237,114470.0,114460.0,0.06759759]
[1754252928261,4.1783737,114470.0,114460.0,0.00104759]
[1754252928483,4.96961445,114470.0,114460.0,0.00104759]
[1754252928727,5.06602133,114470.0,114460.0,0.00104759]
[1754252928944,4.97718377,114470.0,114460.0,0.00104759]
[1754252930813,4.95162732,114470.0,114460.0,0.00104759]
[1754252931245,4.27680019,114470.0,114460.0,0.00104759]
[1754252931482,4.22346924,114470.0,114460.0,0.00104759]
[1754252931664,4.23714858,114470.0,114460.0,0.00104759]
[1754252932565,4.21833204,114470.0,114460.0,0.00104759]
[1754252933818,4.21830763,114470.0,114460.0,0.00104759]
[1754252937182,4.1625108,114470.0,114460.0,0.00104759]
[1754252938727,4.19852098,114470.0,114460.0,0.00104759]
[1754252938977,4.18167098,114470.0,114460.0,0.00104759]
[1754252944092,4.90092443,114470.0,114460.0,0.00104759]
[1754252944302,4.90090834,114470.0,114460.0,0.00104759]
[1754252948208,4.22608121,114470.0,114460.0,0.00104759]
[1754252949811,4.90090834,114470.0,114460.0,0.00104759]
[1754252950025,4.88405834,114470.0,114460.0,0.00104759]
[1754252950209,4.88405981,114470.0,114460.0,0.00104759]
[1754252950958,4.90023981,114470.0,114460.0,0.00104759]
[1754252952109,4.88656047,114470.0,114460.0,0.00104759]
[1754252953624,3.53690621,114470.0,114460.0,0.00104759]
[1754252953749,4.87038047,114470.0,114460.0,0.00104759]
[1754252955028,4.75041981,114470.0,114460.0,0.00104759]
[1754252955230,4.88381981,114470.0,114460.0,0.00104759]
[1754252955489,4.90261549,114470.0,114460.0,0.00104759]
[1754252955669,4.88381981,114470.0,114460.0,0.00104759]
[1754252956041,4.90261551,114470.0,114460.0,0.00104759]
[1754252956470,4.88893617,114470.0,114460.0,0.00104759]
[1754252957097,4.21410904,114470.0,114460.0,0.06691759]
[1754252957302,4.21411639,114470.0,114460.0,0.06691759]
[1754252957511,4.88894352,114470.0,114460.0,0.06691759]
[1754252958772,4.21411639,114470.0,114460.0,0.06691759]
[1754252958936,4.21411797,114470.0,114460.0,0.06691759]
[1754252959107,4.21411797,114470.0,114460.0,0.07009759]
[1754252960677,4.20595852,114470.0,114460.0,0.07009759]
[1754252960899,4.22780551,114470.0,114460.0,0.07009759]
[1754252961932,4.22783643,114470.0,114460.0,0.07009759]
[1754252964968,4.22784044,114470.0,114460.0,0.07009759]
[1754252967753,4.22785005,114470.0,114460.0,0.07009759]
[1754252971447,4.90267718,114470.0,114460.0,0.07009759]
[1754252972949,4.89450932,114470.0,114460.0,0.07009759]
[1754252973154,4.90268362,114470.0,114460.0,0.07009759]
[1754252976581,4.22785649,114470.0,114460.0,0.07009759]
[1754252979619,4.22785876,114470.0,114460.0,0.07009759]
[1754252982147,4.21417963,114470.0,114460.0,0.07009759]
[1754252984972,4.2278588,114470.0,114460.0,0.07009759]
[1754252988294,4.22785898,114470.0,114460.0,0.07009759]
[1754252993725,4.22785898,114470.0,114460.0,0.06937401]
[1754252996892,4.21355265,114470.0,114460.0,0.06937401]
[1754252997113,4.22786759,114470.0,114460.0,0.06937401]
[1754252999651,4.21418842,114470.0,114460.0,0.06937401]
[1754253000283,4.99530193,114470.0,114460.0,0.00032401]
[1754253000505,5.06039586,114470.0,114460.0,0.00032401]
[1754253001426,4.72039586,114470.0,114460.0,0.00032401]
[1754253001640,4.60600185,114470.0,114460.0,0.00032401]
[1754253002093,4.59213774,114470.0,114460.0,0.00032401]
[1754253002344,3.23052638,114470.0,114460.0,0.06394401]
[1754253002564,3.90535351,114470.0,114460.0,0.06394401]
[1754253003211,4.58018064,114470.0,114460.0,0.06394401]
[1754253003424,4.92018064,114470.0,114460.0,0.06394401]
[1754253003858,4.89260432,114470.0,114460.0,0.06394401]
[1754253007364,4.89256758,114470.0,114460.0,0.06394401]
[1754253008052,4.89256736,114470.0,114460.0,0.06394401]
[1754253008313,4.90646736,114470.0,114460.0,0.00032401]
[1754253008523,4.93404368,114470.0,114460.0,0.00032401]
[1754253010968,4.78975368,114470.0,114460.0,0.00032401]
[1754253012272,4.77585368,114470.0,114460.0,0.00032401]
[1754253012716,4.7621733,114470.0,114460.0,0.00032401]
[1754253013548,4.7621733,114470.0,114460.0,0.06457401]
[1754253015431,4.77585358,114470.0,114460.0,0.06457401]
[1754253015834,4.77585358,114470.0,114460.0,0.06158401]
[1754253016875,4.77585169,114470.0,114460.0,0.06158401]
[1754253017129,4.77585169,114470.0,114460.0,0.00032401]
[1754253021295,4.77584893,114470.0,114460.0,0.00032401]
[1754253022753,4.77584893,114470.0,114460.0,0.06158401]
[1754253027634,4.6731663,114470.0,114460.0,0.06158401]
[1754253027860,4.70335814,114470.0,114460.0,0.06158401]
[1754253029666,4.72080716,114470.0,114460.0,0.06457401]
[1754253030294,4.76788964,114470.0,114460.0,0.06457401]
[1754253030539,4.80720609,114470.0,114460.0,0.00032401]
[1754253030745,3.68290757,114470.0,114460.0,0.00032401]
[1754253030954,3.66922729,114470.0,114460.0,0.00032401]
[1754253031173,5.01888155,114470.0,114460.0,0.00032401]
[1754253031382,4.88001363,114470.0,114460.0,0.00032401]
[1754253031588,5.05473189,114470.0,114460.0,0.00032401]
[1754253031963,4.98209296,114470.0,114460.0,0.00032401]
[1754253033403,5.01009296,114470.0,114460.0,0.00032401]
[1754253033554,5.02377519,114470.0,114460.0,0.00032401]
[1754253033962,0.35744902,114460.0,114400.0,0.07091198]
[1754253034171,3.13979202,114440.0,114430.0,0.07071198]
[1754253034372,3.97928043,114440.0,114430.0,0.07272198]
[1754253034774,4.00556843,114440.0,114430.0,0.07272198]
[1754253035002,4.01925135,114440.0,114430.0,0.07272198]
[1754253035994,4.01925135,114440.0,114430.0,0.005]
[1754253036207,4.01925135,114440.0,114430.0,0.06626]
[1754253037702,3.34442422,114440.0,114430.0,0.06626]
[1754253037913,4.01925135,114440.0,114430.0,0.06626]
[1754253045937,4.01922708,114440.0,114430.0,0.06626]
[1754253046791,3.19291093,114440.0,114430.0,0.06626]
[1754253047009,4.00169806,114440.0,114430.0,0.06626]
[1754253048783,3.32686305,114440.0,114430.0,0.06626]
[1754253048999,4.00169018,114440.0,114430.0,0.06626]
[1754253049742,3.32686305,114440.0,114430.0,0.06626]
[1754253049975,4.00169018,114440.0,114430.0,0.06626]
[1754253050588,3.32686305,114440.0,114430.0,0.06626]
[1754253050807,4.00169018,114440.0,114430.0,0.06626]
[1754253051195,3.19290305,114440.0,114430.0,0.06626]
[1754253051406,3.19290537,114440.0,114430.0,0.74108713]
[1754253051617,3.28686781,114440.0,114430.0,0.06626]
[1754253051827,2.93054753,114440.0,114430.0,0.06626]
[1754253052035,3.08866653,114440.0,114430.0,0.06626]
[1754253053784,3.76349366,114440.0,114430.0,0.06626]
[1754253054397,3.7771779,114440.0,114430.0,0.06626]
[1754253057300,3.77717702,114440.0,114430.0,0.06626]
[1754253057526,3.64325702,114440.0,114430.0,0.06626]
[1754253057745,3.77709702,114440.0,114430.0,0.06626]
[1754253060033,3.76893342,114440.0,114430.0,0.06626]
[1754253060259,3.77709833,114440.0,114430.0,0.06626]
[1754253063729,3.77907833,114440.0,114430.0,0.06327]
[1754253064188,3.77907833,114440.0,114430.0,0.06645]
[1754253064404,3.79540639,114440.0,114430.0,0.06645]
[1754253065060,3.79540661,114440.0,114430.0,0.06645]
[1754253065292,3.79540661,114440.0,114410.0,0.20027]
[1754253065293,2.940462,114430.0,114410.0,0.20027]
[1754253065538,3.27528913,114420.0,114410.0,0.06647]
[1754253065768,3.27528913,114420.0,114410.0,0.00526]
[1754253066227,2.600462,114420.0,114410.0,0.00526]
[1754253066346,2.600462,114420.0,114410.0,0.06855]
[1754253066555,2.600462,114420.0,114410.0,0.06902576]
[1754253067714,2.600462,114420.0,114410.0,0.07002576]
[1754253067932,2.600462,114420.0,114410.0,0.74485289]
[1754253068158,2.600462,114420.0,114410.0,0.74585289]
[1754253069575,2.61414477,114420.0,114410.0,0.74585289]
[1754253070724,2.61414477,114420.0,114410.0,0.07102576]
[1754253070940,2.61414477,114420.0,114410.0,0.74585289]
[1754253074667,2.61414477,114420.0,114410.0,0.74352777]
[1754253074890,2.61414477,114420.0,114410.0,0.06870064]
[1754253077718,3.2889719,114420.0,114410.0,0.06870064]
[1754253077938,3.2910019,114420.0,114410.0,0.06870064]
[1754253078840,3.27731913,114420.0,114410.0,0.06870064]
[1754253078987,3.08461741,114420.0,114410.0,0.06870064]
[1754253079208,0.67685713,114420.0,114410.0,0.06870064]
[1754253079433,3.08461713,114420.0,114410.0,0.06870064]
[1754253083011,3.09829987,114420.0,114410.0,0.06870064]
[1754253083579,3.09829987,114420.0,114410.0,0.06860364]
[1754253083781,2.42347274,114420.0,114410.0,0.06860364]
[1754253085966,2.40979,114420.0,114410.0,0.74343077]
[1754253087778,2.40776,114420.0,114410.0,0.74343077]
[1754253088243,2.186892,114420.0,114410.0,0.74343077]
[1754253088672,0.34,114430.0,114410.0,0.83206361]
[1754253088884,0.34,114430.0,114420.0,0.80842713]
[1754253089093,0.34,114430.0,114420.0,0.87613713]
[1754253090390,0.35368171,114430.0,114420.0,0.87613713]
[1754253090817,0.35368171,114430.0,114420.0,0.87713713]
[1754253091484,0.35368171,114430.0,114420.0,0.87813713]
[1754253093026,0.01368171,114430.0,114420.0,1.55296426]
[1754253093693,0.01368171,114430.0,114420.0,0.87813713]
[1754253094325,0.01368171,114430.0,114420.0,1.6415971]
[1754253094776,0.01368171,114430.0,114420.0,0.89172826]
[1754253095248,0.01368171,114430.0,114420.0,0.91743035]
[1754253095475,2.186892,114450.0,114420.0,0.91743035]
[1754253095683,0.01368083,114440.0,114430.0,0.59978542]
[1754253095903,0.19879,114460.0,114430.0,0.66749542]
[1754253096135,2.186892,114450.0,114440.0,0.13392]
[1754253096368,2.186892,114450.0,114440.0,0.19649]
[1754253096369,2.21953105,114450.0,114440.0,0.19649]
[1754253096849,2.22053105,114450.0,114440.0,0.19649]
[1754253097076,2.22253105,114450.0,114440.0,0.19649]
[1754253097310,2.20520622,114450.0,114440.0,0.19649]
[1754253097562,2.20320622,114450.0,114440.0,0.19649]
[1754253097765,2.20520622,114450.0,114440.0,0.19649]
[1754253097940,2.20620622,114450.0,114440.0,0.19649]
[1754253098161,2.20420622,114450.0,114440.0,0.19649]
[1754253098390,2.20520622,114450.0,114440.0,0.19649]
[1754253099453,2.54420622,114450.0,114440.0,0.19649]
[1754253099816,2.54420068,114450.0,114440.0,0.19649]
[1754253101729,2.54420068,114450.0,114440.0,0.19857]
[1754253105556,0.01730868,114450.0,114440.0,0.80147542]
[1754253105775,0.341,114450.0,114440.0,0.80147542]
[1754253106219,0.341,114450.0,114440.0,0.20169]
[1754253106632,2.186892,114460.0,114440.0,0.80147542]
[1754253106901,0.3542748,114460.0,114450.0,0.06914]
[1754253107111,0.3562248,114460.0,114450.0,0.06914]
[1754253107328,0.3562248,114460.0,114450.0,0.07122]
[1754253108217,0.35110703,114460.0,114450.0,0.07130314]
[1754253109328,0.34295,114460.0,114450.0,0.07130314]
[1754253109718,0.34295,114460.0,114450.0,0.06818314]
[1754253110137,0.35662899,114460.0,114450.0,0.06818314]
[1754253111842,0.42281899,114460.0,114450.0,0.06610314]
[1754253116223,0.4309744,114460.0,114450.0,0.06610314]
[1754253116802,0.0247844,114460.0,114450.0,0.06818314]
[1754253116995,0.0247844,114460.0,114450.0,0.07130314]
[1754253117439,0.0247844,114460.0,114450.0,0.06818314]